fUSD/lending_fUSD_20241121
["ID","MTS","AMOUNT","RATE_DAILY","PERIOD"]
[342955823,1732219847159,-978.26,0.000419,2]
[342955824,1732219847170,-500.0,0.00041917,11]
[342955825,1732219847179,-606.19,0.00041917,30]
[342955826,1732219847189,-548.0,0.00041925,60]
[342955827,1732219847199,-1014.26,0.00041972,120]
[342955828,1732219847208,-464.87898088,0.00042011,15]
[342955829,1732219847219,-175.76,0.00042033,91]
[342955830,1732219847228,-300.9,0.000421,58]
[342955831,1732219847237,-1012.74,0.000421,58]
[342955832,1732219847247,-468.118,0.0004211,2]
[342955833,1732219847256,-213.97994456,0.00042191,11]
[342955834,1732219847266,-606.19,0.00042191,30]
[342955835,1732219847275,-1536.0,0.0004224,5]
[342955836,1732219847284,-200.0,0.00042271,120]
[342955837,1732219847294,-152.3,0.000423,33]
[342955838,1732219847304,-152.3,0.000423,33]
[342955839,1732219847313,-152.3,0.000423,33]
[342955840,1732219847323,-152.3,0.000423,33]
[342955841,1732219847332,-152.3,0.000423,33]
[342955842,1732219847342,-152.3,0.000423,33]
[342955843,1732219847351,-152.3,0.000423,33]
[342955844,1732219847360,-152.3,0.000423,33]
[342955845,1732219847370,-152.3,0.000423,33]
[342955846,1732219847381,-152.3,0.000423,33]
[342955847,1732219847390,-152.3,0.000423,33]
[342955848,1732219847401,-500.0,0.00042332,120]
[342955849,1732219847411,-800.0,0.00042402,60]
[342955850,1732219847427,-500.0,0.00042402,60]
[342955851,1732219847436,-152.0,0.00042428,3]
[342955852,1732219847446,-700.0,0.00042451,15]
[342955853,1732219847458,-700.0,0.00042451,15]
[342955854,1732219847468,-700.0,0.00042451,15]
[342955855,1732219847479,-700.0,0.00042451,15]
[342955856,1732219847490,-700.0,0.00042451,15]
[342955857,1732219847501,-700.0,0.00042451,15]
[342955858,1732219847511,-700.0,0.00042451,15]
[342955859,1732219847521,-261.47114188,0.00042451,15]
[342955860,1732219847531,-606.19,0.00042465,30]
[342955861,1732219847541,-700.0,0.0004247,16]
[342955862,1732219847551,-700.0,0.0004247,16]
[342955863,1732219847561,-700.0,0.0004247,16]
[342955864,1732219847571,-700.0,0.0004247,16]
[342955865,1732219847580,-700.0,0.0004247,16]
[342955866,1732219847590,-700.0,0.0004247,16]
[342955867,1732219847599,-700.0,0.0004247,16]
[342955868,1732219847609,-700.0,0.0004247,16]
[342955869,1732219847619,-700.0,0.0004247,16]
[342955870,1732219847628,-700.0,0.0004247,16]
[342955871,1732219847638,-500.0,0.00042523,120]
[342955872,1732219847647,-500.0,0.00042535,120]
[342955873,1732219847656,-1256.0,0.00042549,2]
[342955874,1732219847668,-564.0,0.00042549,2]
[342955875,1732219847677,-629.0,0.00042549,2]
[342955876,1732219847687,-1927.0,0.00042549,2]
[342955877,1732219847696,-3748.0,0.00042549,2]
[342955878,1732219847705,-1260.0,0.00042549,2]
[342955879,1732219847715,-815.0,0.00042549,2]
[342955880,1732219847724,-2000.0,0.00042626,120]
[342955881,1732219847733,-1014.26,0.0004263,120]
[342955882,1732219847743,-1054.0,0.00042697,30]
[342955883,1732219847752,-761.2,0.00042721,120]
[342955884,1732219847761,-606.19,0.00042739,30]
[342955885,1732219847771,-150.0,0.00042794,30]
[342955886,1732219847781,-151.0,0.00042794,30]
[342955887,1732219847790,-845.66820237,0.000428,120]
[342955888,1732219847799,-8610.04,0.0004281,7]
[342955889,1732219847809,-1297.25,0.00042864,2]
[342955890,1732219847818,-332.26235854,0.000429,15]
[342955891,1732219847828,-151.96,0.00042939,120]
[342955892,1732219847837,-800.0,0.0004295,60]
[342955893,1732219847846,-500.0,0.0004295,60]
[342955894,1732219847856,-150.0,0.00042963,120]
[342955895,1732219847866,-550.0,0.00043,2]
[342955896,1732219847875,-197.0,0.00043,2]
[342955897,1732219847885,-1004.0,0.00043,2]
[342955898,1732219847894,-344.0,0.00043,2]
[342955899,1732219847904,-722.76705566,0.00043,120]
[342955900,1732219847913,-1933.27868081,0.00043,120]
[342955901,1732219847923,-150.0,0.00043,120]
[342955902,1732219847932,-150.000001,0.00043,120]
[342955903,1732219847941,-606.19,0.00043013,30]
[342955904,1732219847951,-187.2,0.00043014,120]
[342955905,1732219847961,-150.22,0.00043079,2]
[342955906,1732219847971,-3514.0,0.0004311,2]
[342955907,1732219847981,-919.0,0.0004311,2]
[342955908,1732219847990,-150.0,0.0004311,2]
[342955909,1732219847999,-266.442,0.0004311,2]
[342955910,1732219848009,-200.0,0.00043203,120]
[342955911,1732219848019,-500.0,0.00043233,120]
[342955912,1732219848029,-606.19,0.00043287,30]
[342955913,1732219848040,-1014.26,0.00043287,120]
[342955914,1732219848050,-151.0,0.00043315,120]
[342955915,1732219848059,-300.9,0.00043335,68]
[342955916,1732219848070,-2000.0,0.0004338,120]
[342955917,1732219848079,-2362.62,0.0004347,2]
[342955918,1732219848088,-1012.74,0.0004349,69]
[342955919,1732219848098,-800.0,0.00043498,60]
[342955920,1732219848107,-500.0,0.00043498,60]
[342955921,1732219848116,-500.0,0.00043498,60]
[342955922,1732219848126,-4333.83,0.000435,7]
[342955923,1732219848135,-606.19,0.00043561,30]
[342955924,1732219848145,-968.98,0.00043581,30]
[342955925,1732219848155,-969.18,0.00043581,30]
[342955926,1732219848168,-969.18,0.00043581,30]
[342955927,1732219848178,-969.18,0.00043581,30]
[342955928,1732219848188,-969.18,0.00043581,30]
[342955929,1732219848198,-493.88219997,0.000438,120]
[342955930,1732219848209,-973.06081,0.000438,60]
[342955931,1732219848219,-606.19,0.00043835,30]
[342955932,1732219848228,-1014.26,0.00043945,120]
[342955933,1732219848237,-150.0,0.00044,57]
[342955934,1732219848247,-8954.0,0.00044,40]
[342955935,1732219848257,-800.0,0.00044046,120]
[342955936,1732219848267,-500.0,0.00044046,120]
[342955937,1732219848277,-150.0,0.00044102,2]
[342955938,1732219848287,-7339.18,0.00044103,7]
[342955939,1732219848297,-606.19,0.00044109,30]
[342955940,1732219848307,-500.0,0.00044135,120]
[342955941,1732219848317,-2000.0,0.00044135,120]
[342955942,1732219848326,-500.0,0.00044135,120]
[342955943,1732219848335,-500.0,0.00044135,120]
[342955944,1732219848345,-200.0,0.00044135,120]
[342955945,1732219848355,-2500.0,0.0004421,50]
[342955946,1732219848365,-591.06,0.0004423,120]
[342955947,1732219848375,-151.01,0.00044303,2]
[342955948,1732219848385,-800.0,0.0004432,120]
[342955949,1732219848395,-500.0,0.0004432,120]
[342955950,1732219848405,-606.19,0.00044383,30]
[342955951,1732219848419,-464.87898088,0.00044567,15]
[342955952,1732219848429,-300.9,0.0004457,77]
[342955953,1732219848439,-150.0,0.00044585,120]
[342955954,1732219848449,-500.0,0.00044594,120]
[342955955,1732219848459,-500.0,0.00044594,120]
[342955956,1732219848468,-2500.0,0.000446,51]
[342955957,1732219848478,-1014.26,0.00044602,120]
[342955958,1732219848488,-606.19,0.00044657,30]
[342955959,1732219848498,-241.0,0.0004466,30]
[342955960,1732219848508,-202.0,0.0004466,30]
[342955961,1732219848518,-9970.17,0.00044712,7]
[342955962,1732219848527,-4219.49,0.00044712,7]
[342955963,1732219848537,-3073.81,0.00044712,7]
[342955964,1732219848546,-800.0,0.00044868,120]
[342955965,1732219848556,-500.0,0.00044868,120]
[342955966,1732219848565,-1012.74,0.0004488,80]
[342955967,1732219848575,-606.19,0.00044931,30]
[342955968,1732219848585,-1054.0,0.00044944,30]
[342955969,1732219848594,-302.0,0.00045,120]
[342955970,1732219848603,-3000.0,0.00045,120]
[342955971,1732219848613,-600.0,0.00045,2]
[342955972,1732219848622,-399.819721,0.00045012,30]
[342955973,1732219848632,-388.63,0.00045052,120]
[342955974,1732219848642,-1297.25,0.00045128,2]
[342955975,1732219848651,-500.0,0.00045142,120]
[342955976,1732219848660,-606.3573807,0.00045205,30]
[342955977,1732219848670,-2500.0,0.0004523,53]
[342955978,1732219848679,-1014.26,0.0004526,120]
[342955979,1732219848689,-761.2,0.00045305,120]
[342955980,1732219848698,-7885.49,0.00045333,7]
[342955981,1732219848708,-800.0,0.00045416,120]
[342955982,1732219848717,-500.0,0.00045416,120]
[342955983,1732219848726,-347.0,0.00045455,5]
[342955984,1732219848736,-740.221,0.00045475,120]
[342955985,1732219848746,-740.222,0.00045475,120]
[342955986,1732219848755,-740.222,0.00045475,120]
[342955987,1732219848764,-740.222,0.00045475,120]
[342955988,1732219848774,-740.222,0.00045475,120]
[342955989,1732219848783,-1256.0,0.00045549,2]
[342955990,1732219848792,-564.0,0.00045549,2]
[342955991,1732219848801,-629.0,0.00045549,2]
[342955992,1732219848811,-1927.0,0.00045549,2]
[342955993,1732219848820,-3748.0,0.00045549,2]
[342955994,1732219848829,-1260.0,0.00045549,2]
[342955995,1732219848838,-815.0,0.00045549,2]
[342955996,1732219848848,-399.819721,0.00045575,30]
[342955997,1732219848857,-468.05,0.0004563,120]
[342955998,1732219848867,-150.0,0.000457,120]
[342955999,1732219848876,-229.0,0.000457,30]
[342956000,1732219848885,-156.54,0.00045753,2]
[342956001,1732219848895,-241.0,0.0004577,30]
[342956002,1732219848904,-202.0,0.0004577,30]
[342956003,1732219848914,-300.9,0.00045805,87]
[342956004,1732219848924,-500.0,0.00045816,30]
[342956005,1732219848934,-500.0,0.00045816,30]
[342956006,1732219848944,-500.0,0.00045816,30]
[342956007,1732219848954,-500.0,0.00045816,30]
[342956008,1732219848963,-500.0,0.00045816,30]
[342956009,1732219848973,-500.0,0.00045816,30]
[342956010,1732219848982,-500.0,0.00045816,30]
[342956011,1732219848992,-500.0,0.00045816,30]
[342956012,1732219849001,-500.0,0.00045816,30]
[342956013,1732219849010,-503.05722754,0.00045816,30]
[342956014,1732219849020,-2500.0,0.0004585,55]
[342956015,1732219849029,-363.0,0.000459,30]
[342956016,1732219849039,-1000.0,0.000459,30]
[342956017,1732219849048,-1014.26,0.00045917,120]
[342956018,1732219849058,-1000.0,0.00045934,2]
[342956019,1732219849068,-800.0,0.00045964,120]
[342956020,1732219849078,-500.0,0.00045964,120]
[342956021,1732219849087,-165.88,0.00045999,2]
[342956022,1732219849097,-1000.0,0.00046,120]
[342956023,1732219849107,-903.45881958,0.00046,120]
[342956024,1732219849118,-2416.59835101,0.00046,120]
[342956025,1732219849128,-2000.0,0.00046031,120]
[342956026,1732219849137,-3514.0,0.0004611,2]
[342956027,1732219849147,-919.0,0.0004611,2]
[342956028,1732219849156,-150.0,0.0004611,2]
[342956029,1732219849167,-18213.33,0.00046116,7]
[342956030,1732219849177,-768.0,0.00046118,60]
[342956031,1732219849187,-399.819721,0.00046137,30]
[342956032,1732219849197,-1012.74,0.0004627,91]
[342956033,1732219849244,-500.0,0.000464,120]
[342956034,1732219849254,-150.22,0.00046431,2]
[342956035,1732219849264,-200.0,0.00046476,120]
[342956036,1732219849274,-2500.0,0.0004648,58]
[342956037,1732219849283,-800.0,0.00046512,120]
[342956038,1732219849293,-500.0,0.00046512,120]
[342956039,1732219849303,-1014.26,0.00046575,120]
[342956040,1732219849312,-200.0,0.00046575,60]
[342956041,1732219849321,-500.0,0.000466,2]
[342956042,1732219849331,-421.93189667,0.00046629,120]
[342956043,1732219849340,-8500.0,0.00046674,16]
[342956044,1732219849349,-8500.0,0.00046682,16]
[342956045,1732219849359,-8500.0,0.00046691,16]
[342956046,1732219849369,-399.819721,0.000467,30]
[342956047,1732219849379,-8500.0,0.000467,16]
[342956048,1732219849388,-9874.52,0.00046741,7]
[342956049,1732219849398,-241.0,0.0004689,30]
[342956050,1732219849407,-202.0,0.0004689,30]
[342956051,1732219849419,-421.93189667,0.00046997,120]
[342956052,1732219849429,-1000.0,0.00047,120]
[342956053,1732219849438,-650.0,0.00047,2]
[342956054,1732219849448,-300.9,0.0004704,97]
[342956055,1732219849461,-500.0,0.00047041,13]
[342956056,1732219849471,-172.0,0.00047041,13]
[342956057,1732219849481,-500.0,0.00047041,120]
[342956058,1732219849493,-500.0,0.00047041,120]
[342956059,1732219849503,-613.0,0.00047041,120]
[342956060,1732219849513,-800.0,0.0004706,120]
[342956061,1732219849523,-500.0,0.0004706,120]
[342956062,1732219849533,-2500.0,0.000471,60]
[342956063,1732219849542,-464.87898088,0.00047122,15]
[342956064,1732219849552,-421.93189667,0.00047164,120]
[342956065,1732219849561,-1014.26,0.00047232,120]
[342956066,1732219849571,-399.819721,0.00047262,30]
[342956067,1732219849580,-1054.0,0.0004731,30]
[342956068,1732219849590,-176.0,0.00047354,2]
[342956069,1732219849599,-32911.14,0.00047365,7]
[342956070,1732219849608,-1297.25,0.00047392,2]
[342956071,1732219849618,-500.0,0.00047397,120]
[342956072,1732219849628,-500.0,0.00047397,120]
[342956073,1732219849637,-500.0,0.00047397,120]
[342956074,1732219849646,-500.0,0.00047397,120]
[342956075,1732219849656,-500.0,0.00047397,120]
[342956076,1732219849665,-500.0,0.00047397,120]
[342956077,1732219849675,-500.0,0.00047397,120]
[342956078,1732219849684,-500.0,0.00047397,120]
[342956079,1732219849693,-500.0,0.00047397,120]
[342956080,1732219849702,-500.0,0.00047397,120]
[342956081,1732219849712,-500.0,0.00047397,120]
[342956082,1732219849721,-500.0,0.00047397,120]
[342956083,1732219849730,-500.0,0.00047397,120]
[342956084,1732219849739,-500.0,0.00047397,120]
[342956085,1732219849748,-500.0,0.00047397,120]
[342956086,1732219849758,-500.0,0.00047397,120]
[342956087,1732219849767,-500.0,0.00047397,120]
[342956088,1732219849777,-500.0,0.00047397,120]
[342956089,1732219849787,-500.0,0.00047397,120]
[342956090,1732219849796,-500.0,0.00047397,120]
[342956091,1732219849805,-500.0,0.00047397,120]
[342956092,1732219849814,-500.0,0.00047397,120]
[342956093,1732219849824,-578.22632839,0.00047397,120]
[342956094,1732219849834,-421.93189667,0.0004742,120]
[342956095,1732219849843,-150.0,0.000476,120]
[342956096,1732219849852,-800.0,0.00047608,120]
[342956097,1732219849861,-500.0,0.00047608,120]
[342956098,1732219849871,-1012.74,0.0004766,102]
[342956099,1732219849880,-269.02471798,0.000478,9]
[342956100,1732219849890,-152.3,0.000478,42]
[342956101,1732219849899,-152.3,0.000478,42]
[342956102,1732219849908,-152.3,0.000478,42]
[342956103,1732219849918,-152.3,0.000478,42]
[342956104,1732219849927,-152.3,0.000478,42]
[342956105,1732219849937,-152.3,0.000478,42]
[342956106,1732219849946,-152.3,0.000478,42]
[342956107,1732219849956,-152.3,0.000478,42]
[342956108,1732219849967,-152.3,0.000478,42]
[342956109,1732219849977,-152.3,0.000478,42]
[342956110,1732219849987,-152.3,0.000478,42]
[342956111,1732219849996,-152.3,0.000478,42]
[342956112,1732219850006,-152.3,0.000478,42]
[342956113,1732219850016,-152.3,0.000478,42]
[342956114,1732219850025,-152.3,0.000478,42]
[342956115,1732219850035,-152.3,0.000478,42]
[342956116,1732219850044,-152.3,0.000478,42]
[342956117,1732219850054,-152.3,0.000478,42]
[342956118,1732219850063,-152.3,0.000478,42]
[342956119,1732219850072,-152.3,0.000478,42]
[342956120,1732219850081,-152.3,0.000478,42]
[342956121,1732219850091,-152.3,0.000478,42]
[342956122,1732219850100,-269.02471798,0.0004785,9]
[342956123,1732219850109,-421.93189667,0.00047865,120]
[342956124,1732219850118,-761.2,0.00047889,120]
[342956125,1732219850127,-1014.26,0.0004789,120]
[342956126,1732219850136,-269.02471798,0.000479,9]
[342956127,1732219850145,-4000.0,0.000479,120]
[342956128,1732219850155,-150.0,0.00047918,120]
[342956129,1732219850164,-2000.0,0.00047926,120]
[342956130,1732219850174,-2163.33,0.00047945,120]
[342956131,1732219850183,-500.0,0.00047945,120]
[342956132,1732219850192,-500.0,0.00047945,120]
[342956133,1732219850201,-1959.68,0.00047945,120]
[342956134,1732219850210,-1959.68,0.00047945,120]
[342956135,1732219850219,-32141.69,0.00047973,7]
[342956136,1732219850229,-1000.0,0.00047999,120]
[342956137,1732219850238,-2163.33,0.00047999,120]
[342956138,1732219850248,-241.0,0.00048,30]
[342956139,1732219850256,-202.0,0.00048,30]
[342956140,1732219850266,-1000.0,0.00048,120]
[342956141,1732219850276,-903.45881957,0.00048,120]
[342956142,1732219850285,-2416.598351,0.00048,120]
[342956143,1732219850295,-150.0,0.00048011,120]
[342956144,1732219850304,-421.93189667,0.00048116,120]
[342956145,1732219850313,-800.0,0.00048156,120]
[342956146,1732219850322,-500.0,0.00048156,120]
[342956147,1732219850332,-500.0,0.00048183,120]
[342956148,1732219850341,-150.0,0.00048261,120]
[342956149,1732219850351,-300.9,0.00048275,106]
[342956150,1732219850360,-421.93189667,0.00048437,120]
[342956151,1732219850369,-1004.50191925,0.000485,2]
[342956152,1732219850378,-151.0,0.00048508,8]
[342956153,1732219850388,-1014.26,0.00048547,120]
[342956154,1732219850397,-1256.0,0.00048549,2]
[342956155,1732219850406,-564.0,0.00048549,2]
[342956156,1732219850417,-629.0,0.00048549,2]
[342956157,1732219850428,-1927.0,0.00048549,2]
[342956158,1732219850437,-3744.0,0.00048549,2]
[342956159,1732219850446,-1260.0,0.00048549,2]
[342956160,1732219850455,-815.0,0.00048549,2]
[342956161,1732219850466,-421.93189667,0.00048602,120]
[342956162,1732219850475,-5800.0,0.0004866,14]
[342956163,1732219850484,-500.0,0.00048665,120]
[342956164,1732219850493,-5800.0,0.00048668,14]
[342956165,1732219850502,-5800.0,0.00048677,14]
[342956166,1732219850511,-150.0,0.00048677,120]
[342956167,1732219850520,-5800.0,0.00048685,14]
[342956168,1732219850530,-5800.0,0.00048693,14]
[342956169,1732219850539,-698.54,0.00048694,2]
[342956170,1732219850548,-64288.91,0.00048699,7]
[342956171,1732219850557,-5800.0,0.00048702,14]
[342956172,1732219850566,-152.0,0.00048704,4]
[342956173,1732219850575,-800.0,0.00048704,120]
[342956174,1732219850585,-500.0,0.00048704,120]
[342956175,1732219850594,-5800.0,0.00048711,14]
[342956176,1732219850604,-5800.0,0.00048719,14]
[342956177,1732219850613,-5800.0,0.00048728,14]
[342956178,1732219850622,-185.02713,0.00048735,30]
[342956179,1732219850631,-1959.68,0.00048735,120]
[342956180,1732219850640,-5800.0,0.00048736,14]
[342956181,1732219850649,-599.3992181,0.0004877,4]
[342956182,1732219850658,-200.0,0.00048817,120]
[342956183,1732219850669,-600.0,0.000489,17]
[342956184,1732219850678,-1000.0,0.00048999,120]
[342956185,1732219850687,-500.0,0.00049,120]
[342956186,1732219850696,-700.0,0.00049,2]
[342956187,1732219850704,-421.93189667,0.00049032,120]
[342956188,1732219850714,-1012.74,0.0004905,113]
[342956189,1732219850723,-866.06741391,0.00049053,2]
[342956190,1732219850732,-5000.0,0.000491,120]
[342956191,1732219850741,-3514.0,0.0004911,2]
[342956192,1732219850751,-919.0,0.0004911,2]
[342956193,1732219850760,-150.0,0.0004911,2]
[342956194,1732219850770,-468.081,0.0004915,120]
[342956195,1732219850778,-421.93189667,0.00049181,120]
[342956196,1732219850787,-1014.26,0.00049205,120]
[342956197,1732219850796,-626.18316342,0.00049252,120]
[342956198,1732219850805,-535.93822028,0.00049252,120]
[342956199,1732219850814,-308.61,0.0004926,120]
[342956200,1732219850824,-500.0,0.00049314,120]
[342956201,1732219850832,-421.93189667,0.00049315,120]
[342956202,1732219850842,-200.0,0.00049315,60]
[342956203,1732219850850,-700.0,0.00049315,36]
[342956204,1732219850859,-4000.0,0.00049315,30]
[342956205,1732219850869,-150.0,0.0004948,120]
[342956206,1732219850878,-123642.40085551,0.000495,120]
[342956207,1732219850887,-150.0,0.000495,120]
[342956208,1732219850897,-300.9,0.0004951,116]
[342956209,1732219850906,-617.22,0.00049534,120]
[342956210,1732219850916,-2000.0,0.00049551,2]
[342956211,1732219850928,-2000.0,0.00049551,2]
[342956212,1732219850938,-800.0,0.00049562,120]
[342956213,1732219850948,-200.0,0.00049562,120]
[342956214,1732219850957,-800.0,0.00049562,120]
[342956215,1732219850966,-11889.17079725,0.00049586,120]
[342956216,1732219850976,-1297.25,0.00049656,2]
[342956217,1732219850985,-464.87898088,0.00049678,15]
[342956218,1732219850994,-166.82955001,0.000497,26]
[342956219,1732219851003,-150.0,0.000497,120]
[342956220,1732219851012,-1300.0,0.000497,18]
[342956221,1732219851021,-591.06,0.00049759,120]
[342956222,1732219851029,-485.84015001,0.00049765,2]
[342956223,1732219851040,-150.22,0.00049783,2]
[342956224,1732219851049,-728.133426,0.00049796,2]
[342956225,1732219851058,-1680.291751,0.00049796,2]
[342956226,1732219851067,-1534.4329338,0.00049796,2]
[342956227,1732219851077,-157.112205,0.00049798,120]
[342956228,1732219851086,-1000.0,0.00049799,120]
[342956229,1732219851095,-500.0,0.00049799,120]
[342956230,1732219851104,-2000.0,0.00049799,120]
[342956231,1732219851114,-500.0,0.00049799,120]
[342956232,1732219851123,-200.0,0.00049799,120]
[342956233,1732219851133,-2163.33,0.00049799,120]
[342956234,1732219851142,-1959.68,0.00049799,120]
[342956235,1732219851152,-20000.0,0.000498,2]
[342956236,1732219851161,-69072.45468395,0.000498,120]
[342956237,1732219851171,-18943.66112754,0.000498,120]
[342956238,1732219851181,-10171.49888489,0.000498,120]
[342956239,1732219851190,-10097.90829843,0.000498,120]
[342956240,1732219851199,-516.0,0.000498,120]
[342956241,1732219851208,-1334.16024886,0.000498,120]
[342956242,1732219851217,-1307.9519476,0.000498,120]
[342956243,1732219851226,-151.0,0.000498,120]
[342956244,1732219851235,-151.0,0.000498,120]
[342956245,1732219851245,-586.02919657,0.000498,30]
[342956246,1732219851254,-1054.0,0.000498,30]
[342956247,1732219851264,-1900.0,0.000498,18]
[342956248,1732219851273,-1454.8692,0.000498,30]
[342956249,1732219851283,-1454.8692,0.000498,30]
[342956250,1732219851293,-2357.0364,0.000498,30]
[342956251,1732219851302,-2357.0364,0.000498,30]
[342956252,1732219851311,-430.9476,0.000498,30]
[342956253,1732219851320,-430.9476,0.000498,30]
[342956254,1732219851330,-150.0,0.00049806,120]
[342956255,1732219851339,-925.83,0.00049808,120]
[342956256,1732219851350,-80000.0,0.0004983,120]
[342956257,1732219851359,-150.0,0.00049847,2]
[342956258,1732219851368,-2000.0,0.00049863,120]
[342956259,1732219851377,-1014.26,0.00049863,120]
[342956260,1732219851387,-4235.72680501,0.00049898,49]
[342956261,1732219851397,-220.0,0.000499,2]
[342956262,1732219851406,-2600.0,0.000499,18]
[342956263,1732219851418,-534.0,0.00049945,120]
[342956264,1732219851429,-151.0,0.00049973,120]
[342956265,1732219851438,-10000.0,0.0004998,30]
[342956266,1732219851448,-53414.50558868,0.00049991,2]
[342956267,1732219851457,-2163.33,0.00049998,120]
[342956268,1732219851467,-1959.68,0.00049998,120]
[342956269,1732219851477,-1000.0,0.00049999,120]
[342956270,1732219851487,-392.63141852,0.00049999,120]
[342956271,1732219851498,-500.0,0.00049999,120]
[342956272,1732219851507,-500.0,0.00049999,31]
[342956273,1732219851517,-500.0,0.00049999,31]
[342956274,1732219851526,-500.0,0.00049999,31]
[342956275,1732219851536,-500.0,0.00049999,31]
[342956276,1732219851545,-500.0,0.00049999,120]
[342956277,1732219851554,-500.0,0.00049999,31]
[342956278,1732219851564,-500.0,0.00049999,31]
[342956279,1732219851574,-500.0,0.00049999,31]
[342956280,1732219851584,-459.12638262,0.00049999,31]
[342956281,1732219851593,-244.10172935,0.00049999,120]
[342956282,1732219851602,-500.0,0.00049999,31]
[342956283,1732219851611,-500.0,0.00049999,31]
[342956284,1732219851621,-500.0,0.00049999,31]
[342956285,1732219851630,-500.0,0.00049999,31]
[342956286,1732219851640,-500.0,0.00049999,31]
[342956287,1732219851649,-500.0,0.00049999,31]
[342956288,1732219851659,-500.0,0.00049999,31]
[342956289,1732219851668,-500.0,0.00049999,31]
[342956290,1732219851678,-500.0,0.00049999,31]
[342956291,1732219851687,-500.0,0.00049999,31]
[342956292,1732219851696,-287.32637003,0.00049999,31]
[342956293,1732219851705,-500.0,0.00049999,31]
[342956294,1732219851715,-500.0,0.00049999,31]
[342956295,1732219851724,-500.0,0.00049999,31]
[342956296,1732219851733,-500.0,0.00049999,31]
[342956297,1732219851742,-500.0,0.00049999,31]
[342956298,1732219851752,-500.0,0.00049999,31]
[342956299,1732219851761,-500.0,0.00049999,31]
[342956300,1732219851771,-500.0,0.00049999,31]
[342956301,1732219851780,-500.0,0.00049999,31]
[342956302,1732219851790,-500.0,0.00049999,31]
[342956303,1732219851799,-500.0,0.00049999,31]
[342956304,1732219851809,-500.0,0.00049999,31]
[342956305,1732219851819,-500.0,0.00049999,31]
[342956306,1732219851829,-500.0,0.00049999,31]
[342956307,1732219851838,-500.0,0.00049999,31]
[342956308,1732219851848,-500.0,0.00049999,31]
[342956309,1732219851858,-500.0,0.00049999,31]
[342956310,1732219851868,-500.0,0.00049999,31]
[342956311,1732219851877,-500.0,0.00049999,31]
[342956312,1732219851887,-500.0,0.00049999,31]
[342956313,1732219851896,-499.99999999,0.00049999,31]
[342956314,1732219851907,-7546.28938571,0.00049999,120]
[342956315,1732219851919,-2163.33,0.00049999,120]
[342956316,1732219851928,-2163.33,0.00049999,120]
[342956317,1732219851938,-2163.33,0.00049999,120]
[342956318,1732219851948,-2163.33,0.00049999,120]
[342956319,1732219851958,-2163.33,0.00049999,120]
[342956320,1732219851967,-1959.68,0.00049999,120]
[342956321,1732219851977,-1959.68,0.00049999,120]
[342956322,1732219851987,-1959.68,0.00049999,120]